Cogmind - Beta 16.1 *** ADVENTURER MODE // 2026.03.06 @ 08:08:06 Player: Roland Result: Destroyed by O8-FX1(R) with Subdweller Machine Gun Performance ------------- Evolutions (0) 0 Regions Visited (2) 400 Robots Destroyed (14) 70 Value Destroyed (285) 285 Prototype IDs (0) 0 Alien Tech Used (0) 0 Bonus (0) 0 TOTAL SCORE: 755 Bonus ------- None Cogmind --------- Core Integrity 0/250 Matter 147/300 Energy 200/200 System Corruption 0% Temperature Cool (0) Movement Walking (190) Ox1 Location -10/Subcaves Parts ------- > --- POWER (1) -------- Subdweller Power Source > --- PROPULSION (2) --- Aluminum Leg > --- UTILITY (2) ------ Heat Sink Makeshift Light Armor Plating > --- WEAPON (2) ------- Assault Rifle > --- INVENTORY (5) ---- Light Treads Tractor Beam Peak State ------------ > --- POWER ------------ Subdweller Power Source > --- PROPULSION ------- Aluminum Leg > --- UTILITY ---------- Heat Sink Makeshift Light Armor Plating > --- WEAPON ----------- Light Assault Rifle > --- INVENTORY -------- Light Treads Tractor Beam Assault Rifle [Rating: 9] Favorites ----------- Power Light Ion Engine Engine Light Ion Engine Propulsion Aluminum Leg Treads Light Treads Leg Aluminum Leg Utility Heat Sink Device Heat Sink Storage Small Storage Unit Protection Makeshift Light Armor Plating Weapon Light Assault Rifle Ballistic Gun Light Assault Rifle Launcher Grenade Launcher Special Weapon Mining Laser Build | -11 -10 -10 ------- Run | Yrd Mat Sub Slots Evolved . | . . . Power . | . . . Propulsion . | . . . Utility . | . . . Weapon . | . . . Parts Attached 16 | 8 5 3 Power 2 | 1 . 1 Engine 2 | 1 . 1 Core . | . . . Reactor . | . . . Propulsion 6 | 4 2 . Treads 2 | 2 . . Leg 4 | 2 2 . Wheel . | . . . Hover . | . . . Flight . | . . . Utility 4 | 1 2 1 Device 1 | . 1 . Storage 2 | 1 1 . Processor . | . . . Hackware . | . . . Protection 1 | . . 1 Artifact . | . . . Weapon 4 | 2 1 1 Energy Gun . | . . . Energy Cannon . | . . . Ballistic Gun 2 | 2 . . Ballistic Cannon . | . . . Launcher 1 | . 1 . Special Weapon 1 | . . 1 Impact Weapon . | . . . Slashing Weapon . | . . . Piercing Weapon . | . . . Special Melee Weapon . | . . . Unidentified Prototypes . | . . . Parts Lost 5 | . . 5 Power 1 | . . 1 Propulsion 1 | . . 1 Utility . | . . . Weapon 3 | . . 3 Highest Loss Streak 3 | . . 3 To Critical Strikes . | . . . Average Backups 3 | 1 3 3 Power . | . . . Propulsion 1 | 1 1 1 Utility . | . . 1 Weapon 1 | . 1 1 Tool/Special . | . . . Unused Backups 1 | . . 1 Power . | . . . Propulsion . | . . . Utility 1 | . . 1 Weapon . | . . . Tool/Special . | . . . Average Slot Usage (%) 78 | . 86 71 Engine 7 | . 14 1 Leg 26 | . 26 27 Device 13 | . 12 14 Storage 2 | . 5 . Ballistic Gun 18 | . 20 16 Launcher 4 | . 4 3 Special Weapon 3 | . . 6 Peak Build Rating 9 | 6 7 9 Average Rating 5 | 4 6 5 On Entrance 4 | . 6 6 Avg Prop Armor Cover (%) 10 | 18 9 9 Naked Turns . | . . . Heaviest Build 12 | 11 12 12 Greatest Support 20 | 20 20 10 Greatest Overweight (x) 1 | 1 1 1 Average Overweight (x) . | . . . Largest Inventory Capacity 25 | 8 25 5 Average Capacity 5 | 5 6 5 Most Carried 5 | 5 5 4 Average Carried 3 | 1 3 3 Final Capacity 8 | 8 5 5 Final Carried 4 | 2 4 2 Class Distribution -------------------- 100% | Mutant Dominant Class ---------------- Mutant | -10/Materials Mutant | -10/Subcaves Resources | -11 -10 -10 ----------- Run | Yrd Mat Sub Matter Collected 494 | 159 163 172 Remotely . | . . . Salvage Created 278 | . 226 52 Parts 25 | . 17 8 Haulers Intercepted . | . . . Recyclers Shooed . | . . . Parts Field Recycled . | . . . Retrieved Matter . | . . . Parts Self-Destructed 13 | . . 13 Prevented . | . . . Parts Restored . | . . . Kills | -11 -10 -10 ------- Run | Yrd Mat Sub Combat Hostiles Destroyed 14 | . 9 5 Guns 9 | . 9 . AOE 5 | . . 5 Classes Destroyed 3 | . 2 1 Swarmer 9 | . 6 3 Grunt 3 | . 3 . Subdweller 2 | . . 2 Best Kill Streak 3 | . 3 3 Combat Bots Only 3 | . 3 3 Max Kills in Single Turn 3 | . 1 3 Gunslinging . | . . . Exploded 3 | . . 3 Melee . | . . . Uniques/NPCs Destroyed . | . . . Combat | -11 -10 -10 -------- Run | Yrd Mat Sub Hostile Shots Fired 67 | . 36 31 Missed 18 | . 8 10 Hits 49 | . 28 21 Projectile 49 | . 28 21 AOE 7 | . . 7 Critical Strikes 1 | . 1 . Damage Taken 892 | . 241 651 Core 253 | . 62 191 Absorbed by Shields . | . . . Ignored by Resistances 251 | . 76 175 Core Remaining (%) 100 | 100 . . Volleys Fired 53 | . 27 26 Largest 2 | . 2 2 Hottest 120 | . 40 120 Shots Fired 84 | . 40 44 Gun 66 | . 40 26 Cannon . | . . . Launcher 11 | . . 11 Special 7 | . . 7 Kinetic 66 | . 40 26 Thermal 7 | . . 7 Explosive 11 | . . 11 Electromagnetic . | . . . Robot Hit Streak 11 | . 9 11 Robot Miss Streak 2 | . 2 1 Penetration Max . | . . . Secondary Targets 4 | . 4 . Max Gunslinging Chain 1 | . 1 . Shots Hit Robots 48 | . 31 17 Core Hits 26 | . 16 10 Critical Kills . | . . . Critical Parts Destroyed . | . . . Critical Strikes . | . . . Melee Attacks . | . . . Impact . | . . . Slashing . | . . . Piercing . | . . . Sneak Attacks . | . . . Combat Hostiles . | . . . Follow-up Attacks . | . . . Damage Inflicted 696 | . 283 413 Guns 370 | . 283 87 Cannons . | . . . Explosions 326 | . . 326 Melee . | . . . Ramming . | . . . Kinetic 370 | . 283 87 Thermal . | . . . Explosive 326 | . . 326 Electromagnetic . | . . . Impact . | . . . Slashing . | . . . Piercing . | . . . Highest Corruption . | . . . Average Corruption . | . . . Corruption Purged . | . . . Corruption Blocked . | . . . Overload Shots . | . . . Overflow Damage . | . . . Projectiles . | . . . Explosions . | . . . Melee . | . . . Knockbacks . | . . . Impact . | . . . Kinetic . | . . . Secondary . | . . . Self-Inflicted Damage . | . . . Shots . | . . . Rammed . | . . . Targets Rammed . | . . . Kicked . | . . . Crushed . | . . . Highest Temperature . | . . . Average Temperature . | . . . Received Heat Transfer 180 | . 138 42 Siege Activations . | . . . Martial Activations . | . . . Shielding Activations . | . . . Robots Disrupted . | . . . Combat Hostiles . | . . . Robots Corrupted . | . . . Combat Hostiles . | . . . Parts Fried . | . . . Impact Corruptions . | . . . Robots Melted . | . . . Combat Hostiles . | . . . Parts Melted . | . . . Heat Transferred . | . . . Parts Sabotaged . | . . . Parts Stolen . | . . . Parts Stripped . | . . . Power Chain Reactions . | . . . Alert | -11 -10 -10 ------- Run | Yrd Mat Sub Maximum Alert Level . | . . . Low Security (%) 100 | 100 100 . Level 1 . | . . . Level 2 . | . . . Level 3 . | . . . Level 4 . | . . . Level 5 . | . . . High Security . | . . . Max Security . | . . . Peak Influence 70 | . 70 . Initial . | . . . Average 15 | . 16 . Influence Increases 294 | . 224 70 Destroy 0b10 Robot/C 240 | . 180 60 Destroy Leader 50 | . 40 10 Successful Hack 4 | . 4 . Influence Decreases 294 | . 224 70 Time Decay 284 | . 224 60 Lost Part 10 | . . 10 Squads Dispatched 1 | . 1 . Investigation 1 | . 1 . Extermination . | . . . Reinforcement . | . . . Assault . | . . . Garrison . | . . . Intercept . | . . . Searches Triggered . | . . . Construction Impeded . | . . . Haulers Reinforced . | . . . Active Scanning Responses . | . . . Cargo Convoy Interrupts . | . . . Stealth | -11 -10 -10 --------- Run | Yrd Mat Sub Distress Signals . | . . . Communications Jammed . | . . . Distress Signals . | . . . Times Spotted 25 | . 15 10 Peak Tracking Total 4 | . 4 3 Tactical Retreats . | . . . Traps | -11 -10 -10 ------- Run | Yrd Mat Sub Traps Triggered 5 | . 3 2 Indirectly . | . . . Trap Hack Attempts . | . . . Triggered . | . . . Disarmed . | . . . Reprogrammed . | . . . Reused . | . . . Traps Extracted . | . . . Installed . | . . . Triggered . | . . . Machines | -11 -10 -10 ---------- Run | Yrd Mat Sub Machines Disabled . | . . . Max in Single Turn . | . . . Machines Repaired . | . . . Machines Dismantled . | . . . Machines Sabotaged . | . . . Overloaded Fab Kills . | . . . Hacking | -11 -10 -10 --------- Run | Yrd Mat Sub Machines Accessed 5 | . 3 2 Terminals 2 | . 2 . Fabricators . | . . . Repair Stations 1 | . 1 . Recycling Units . | . . . Scanalyzers . | . . . Garrison Access . | . . . Total Hacks 7 | . 4 3 Successful 5 | . 2 3 Failed 2 | . 2 . Catastrophic . | . . . Database Lockouts . | . . . Manual 3 | . 3 . Terminals 3 | . 3 . Fabricators . | . . . Repair Stations 1 | . 1 . Recycling Units . | . . . Scanalyzers . | . . . Garrison Access . | . . . Terminal Hacks 4 | . 1 3 Record 1 | . . 1 Open Door 1 | . . 1 Zone Layout 1 | . 1 . Release Object 1 | . . 1 Fabricator Hacks . | . . . Repair Station Hacks . | . . . Recycling Unit Hacks . | . . . Scanalyzer . | . . . Garrison Access Hacks . | . . . Unauthorized Hacks 1 | . 1 . Terminals . | . . . Fabricators . | . . . Repair Stations 1 | . 1 . Mechanics 1 | . 1 . Recycling Units . | . . . Scanalyzers . | . . . Garrison Access . | . . . Data Cores Recovered . | . . . Used . | . . . Hacking Detections 2 | . 2 . Full Trace Events . | . . . Feedback Events . | . . . Feedback Blocked . | . . . Robot Schematics Acquired . | . . . Robots Built . | . . . Authchips . | . . . Time . | . . . Total Robot Build Rating . | . . . Part Schematics Acquired . | . . . Parts Built . | . . . Authchips . | . . . Time . | . . . Total Part Build Rating . | . . . Part Studies Acquired . | . . . Parts Repaired . | . . . Time . | . . . Parts Recycled . | . . . Recycled Matter . | . . . Retrieved Matter . | . . . Retrieved Components . | . . . Parts Scanalyzed . | . . . Part Schematics Acquired . | . . . Parts Damaged . | . . . Bothacking | -11 -10 -10 ------------ Run | Yrd Mat Sub Used RIF Installer . | . . . Robots Hacked . | . . . Non-combat . | . . . Combat . | . . . Robot Hacks Applied . | . . . Relay Couplers Released . | . . . Fabnet Peak Effective % . | . . . Robots Rewired . | . . . Allies Hacked . | . . . Hacks Repelled . | . . . Allies | -11 -10 -10 -------- Run | Yrd Mat Sub Total Allies . | . . . Largest Group . | . . . Highest-Rated Group . | . . . Highest-Rated Ally . | . . . Total Orders . | . . . Ally Attacks . | . . . Total Damage . | . . . Kills . | . . . Allies Corrupted . | . . . Allies Melted . | . . . Intel | -11 -10 -10 ------- Run | Yrd Mat Sub Active Infowar (turns) . | . . . Robot Analysis Total . | . . . Derelict Logs Recovered . | . . . Drone Launches . | . . . Drone Recoveries . | . . . Exploration | -11 -10 -10 ------------- Run | Yrd Mat Sub Turns Passed 1881 | 86 862 933 Spaces Moved 1262 | 71 491 700 Core 59 | 56 3 . Treads . | . . . Legs 1203 | 15 488 700 Wheels . | . . . Hover . | . . . Flight . | . . . Fastest Speed 50 | 50 100 120 Average Speed 118 | 93 119 120 Slowest Speed 190 | 120 120 190 Overloaded Moves . | . . . Propulsion Burnouts . | . . . Robots Hopped . | . . . Potential Cave-ins . | . . . Cave-ins Triggered . | . . . Exploration Rate (%) 39 | 4 78 37 Regions Visited 2 Branch Regions 1 Pre-discovered Areas . | . . . Known Exits Taken . | . . . Unknown Exits Taken 2 | 1 1 . Scrap Searched 2 | . . 2 Spaces Dug . | . . . Terrain Destroyed 37 | . . 37 Melee . | . . . Projectile . | . . . AOE 37 | . . 37 Terrain Rammed . | . . . Walls Destroyed . | . . . Machines Disabled . | . . . Actions | -11 -10 -10 --------- Run | Yrd Mat Sub Total 1550 | 88 728 734 Wait 185 | . 185 . Move 1260 | 70 490 700 Hop . | . . . Pick Up 19 | 8 9 2 Fast Attach . | . . . Attach 14 | 6 4 4 Detach 1 | . 1 . Swap 13 | 4 8 1 Drop 4 | . 4 . Fire 53 | . 27 26 Melee . | . . . Ram . | . . . Kick . | . . . Crush . | . . . Escape Stasis . | . . . Rewire . | . . . Trap . | . . . Miscellaneous 1 | . . 1 Route ------- -11/Scrapyard -10/Materials (discovered 5 exits: [*Mat x2] / [*Min x2] / *Sub) -10/Subcaves History --------- Turn | Location | Event 7 | -11/Scrapyard | Discovered new exit (range 15) 87 | -11/Scrapyard | Entered Materials 102 | -10/Materials | Discovered new exit (range 16) 136 | -10/Materials | Discovered new exit (range 7) 205 | -10/Materials | Discovered new exit (range 14) 301 | -10/Materials | Build established: Mutant 579 | -10/Materials | Discovered new exit (range 13) 919 | -10/Materials | Discovered new exit (range 8) 949 | -10/Materials | Entered Subcaves 984 | -10/Subcaves | Shifting Twisted Machinery released Mak. Shrapnel Gun 985 | -10/Subcaves | Shifting Twisted Machinery released Sub. Monowheel 1180 | -10/Subcaves | Core integrity fell below 50% 1513 | -10/Subcaves | Released subatomizers from SUBCON Basin 1807 | -10/Subcaves | Shifting Twisted Machinery released Sub. Optics 1809 | -10/Subcaves | Shifting Twisted Machinery released Sub. Power Source 1862 | -10/Subcaves | Disturbed a concealed Subdweller 1872 | -10/Subcaves | Core integrity fell below 20% 1878 | -10/Subcaves | Ambushed by Subdweller buried in earth 1882 | -10/Subcaves | Destroyed by O8-FX1(R) with Subdweller Machine Gun Last Messages --------------- Acquired Sub. Power Source. Aluminum Leg destroyed. Mining Laser destroyed. 00-TZI(R) angrily emerges from the Twisted Machinery. Searching scrap... Found Mak. Light Armor Plating. Found Mak. System Shield. Found 68 Matter. Acquired 68 matter. Acquired Mak. Light Armor Plating. 00-TZI(R) destroyed. Acquired 1 matter. Searching scrap... Found Spk. Treads. Found 57 Matter. Acquired 57 matter. Lgt. Assault Rifle destroyed. O8-FX1(R): "ARGHSUB!" NT-NCL(R): "ARGHSUB!" Map ----- +----------------------------------------------------+ | ?????????????????????????????????????????????????? | | ?????????????????????????????????????????????????? | | ?????????????????????????????????????????????????? | | ?????????????????????????????????????????????????? | | ?????????????????????????????????????????????????? | | ?????????????????????????????????????????????????? | | ?????????????????????????????????????????????????? | | ?????????????????????????????????????????????????? | | ?????????????????????????????????????????????????? | | ?????????????????????????????????????????????????? | | ?????????????????????????????????????????????????? | | ?????????????????????????????????????????????????? | | ?????????????????????????????????????????????????? | | ??????????????????????????????##?????????????????? | | ????????????????????????????## ####??????????????? | | ???????????????????????????? ##?????????????? | | ????????????????????????#### R #?????????????? | | ????????????????????????# #?????????????? | | ???????????????????????## #?????????????? | | ???????????????????????# = #?????????????? | | ???????????????????????# #?????????????? | | ??????????????#????????# R ##????????????? | | ????????????? " ###????# ##???????????? | | ????????????? ###### #???????????? | | ??????????????## # #???????????? | | ??????????????# R @ #???????????? | | ?????????? #???????????? | | ????????????# # # #???????????? | | ????????????#### ### ##???????????? | | ???????????????# ##????????????? | | ???????????????# ;######?????????????? | | ??????????????# # ## # ; ;; #??????????????????? | | ????????????????#??####; ; ##??????????????????? | | ?????????????????????# ;###???????????????????? | | ?????????????????????## ##?????????????????????? | | ??????????????????????# ##??????????????????????? | | ????????????????????### ##??????????????????????? | | ?????????????????#"##"# #??????????????????????? | | ????????????????? """"" "##??????????????????????? | | ?????????????????"## # " #???????????????????????? | | ???????????????????#?## ##??????????????????????? | | ????????????????????## "#????###???????????????? | | ????????????????????# """##??# ##??????????????? | | ???????????????????## """ ### ##?????????????? | | ???????????????????#""" """"# ##????????????? | | ???????????????????#"" """ #????????????? | | ???????????????????##! " " #????????????? | | ????????????????????## "" # #????????????????? | | ?????????????????????#### ##???????????????????? | | ????????????????????????# #???????????????????? | +----------------------------------------------------+ Best States ------------- Heat Dissipation 35 Energy Generation 15 Energy Capacity 200 Matter Stores 173 Matter Capacity 300 Sight Range 16 Terrain Scan Density 10 Armor Coverage 100 Resistance: KI 20 Resistance: TH 20 Resistance: EX 20 Resistance: EM 20 Resistance: I 20 Resistance: S 20 Resistance: P 20 Evasion (%) 55 Recoil Reduction 1 Offensive Hacking 10 Item Schematics ----------------- None Robot Schematics ------------------ None Fabricated ------------ Nothing Repaired ---------- Nothing Studied --------- None Alien Tech Used ----------------- None Achievements -------------- None Challenges ------------ None Game ------ Seed GreatGrapheneAssimilator Manual? 0 Play Time 00:13:32 Cumulative 35.3 hours Start 2026.03.06 @ 07:54:29 End 2026.03.06 @ 08:08:06 Sessions 1 Manual Loads 0 Difficulty Adventurer Special Mode None Game No. 31 Rogue 8 Adventurer 18 Explorer 5 Win Type - Total 0 Types 0/0/0/0/0/0/0/0/0/0 Lore% 45 Gallery% 32 Achievement% 32 Wizard Run 0 Options --------- Layout 1 ASCII 0 Keyboard 0 Movement Numpad Keybinds 0 Fullscreen 1 Font 48/Crisp++ Map View 50x35 Zoom Use 0% Tactical HUD 0 Map Filters NONE Filters NONE Steam 1 RUN: 7fe1e247-ccbc-431c-b9ff-ac89160f0b68